fUSD/lending_fUSD_20240501
["ID","MTS","AMOUNT","RATE_DAILY","PERIOD"]
[325204436,1714584632480,-2417.52,0.00012697,2]
[325204437,1714584632489,-2417.52,0.000127,2]
[325204438,1714584632499,-150.0,0.00012703,2]
[325204439,1714584632508,-2417.52,0.00012704,2]
[325204440,1714584632517,-150.0,0.00012707,2]
[325204441,1714584632528,-2417.52,0.00012707,2]
[325204442,1714584632537,-150.0,0.00012724,2]
[325204443,1714584632547,-300.0,0.00012737,2]
[325204444,1714584632556,-1172.516495,0.00012738,2]
[325204445,1714584632565,-150.0,0.00012739,2]
[325204446,1714584632574,-150.0,0.0001274,2]
[325204447,1714584632584,-150.0,0.00012753,2]
[325204448,1714584632593,-150.0,0.00012754,2]
[325204449,1714584632602,-150.0,0.00012755,2]
[325204450,1714584632611,-150.0,0.00012755,2]
[325204451,1714584632621,-364.0,0.0001276,2]
[325204452,1714584632634,-150.0,0.0001276,2]
[325204453,1714584632645,-150.0,0.00012771,2]
[325204454,1714584632654,-300.0,0.00012772,2]
[325204455,1714584632664,-150.0,0.00012774,2]
[325204456,1714584632674,-150.0,0.00012775,2]
[325204457,1714584632683,-150.0,0.00012777,2]
[325204458,1714584632693,-150.0,0.00012777,2]
[325204459,1714584632704,-150.0,0.00012794,2]
[325204460,1714584632713,-300.0,0.000128,2]
[325204461,1714584632724,-150.0,0.00012801,2]
[325204462,1714584632734,-150.0,0.00012807,2]
[325204464,1714584632743,-300.0,0.00012809,2]
[325204466,1714584632752,-150.0,0.0001281,2]
[325204468,1714584632761,-300.0,0.00012812,2]
[325204470,1714584632771,-156.23366843,0.00012815,2]
[325204472,1714584632783,-150.0,0.00012815,2]
[325204474,1714584632792,-300.0,0.00012816,2]
[325204476,1714584632802,-3135.5409745,0.00012834,2]
[325204478,1714584632811,-150.0,0.00012834,2]
[325204480,1714584632821,-309.78504138,0.00012848,2]
[325204482,1714584632832,-150.0,0.00012858,2]
[325204484,1714584632842,-380.9130553,0.00012868,2]
[325204486,1714584632851,-150.0,0.00012869,2]
[325204488,1714584632861,-150.0,0.00012871,2]
[325204490,1714584632870,-150.0,0.00012876,2]
[325204491,1714584632880,-4586.16381281,0.00012886,2]
[325204493,1714584632889,-200.0,0.00012896,2]
[325204494,1714584632899,-1000.0,0.00012896,2]
[325204495,1714584632908,-200.0,0.00012896,2]
[325204496,1714584632917,-154.8980315,0.00012896,2]
[325204497,1714584632927,-5549.67368343,0.00012898,2]
[325204498,1714584632936,-150.0,0.00012898,2]
[325204499,1714584632945,-10000.0,0.000129,2]
[325204500,1714584632954,-53943.41317532,0.000129,2]
[325204501,1714584632963,-172.6980477,0.000129,2]
[325204502,1714584632972,-150.0,0.000129,2]
[325204503,1714584632981,-197.72577535,0.000129,2]
[325204504,1714584632991,-192.42612688,0.000129,2]
[325204505,1714584633000,-5622.669,0.000129,2]
[325204506,1714584633009,-281.31014696,0.000129,2]
[325204507,1714584633019,-150.0,0.00012901,2]
[325204508,1714584633032,-150.0,0.00012903,2]
[325204509,1714584633041,-150.0,0.00012906,2]
[325204510,1714584633050,-150.0,0.0001291,2]
[325204511,1714584633059,-150.0,0.00012921,2]
[325204512,1714584633068,-150.0,0.00012925,2]
[325204513,1714584633077,-150.0,0.0001293,2]
[325204514,1714584633087,-150.0,0.00012933,2]
[325204516,1714584633097,-150.0,0.00012934,2]
[325204518,1714584633107,-150.0,0.00012956,2]
[325204519,1714584633116,-150.0,0.00012972,2]
[325204520,1714584633125,-208.00772945,0.00012996,2]
[325204521,1714584633135,-167.21010407,0.00012996,2]
[325204522,1714584633144,-179.33467462,0.00012996,2]
[325204523,1714584633165,-419.79988262,0.00012996,2]
[325204524,1714584633182,-114173.34841385,0.00012998,2]
[325204525,1714584633197,-305.39391058,0.00012998,2]
[325204526,1714584633214,-9042.29604545,0.00012998,2]
[325204527,1714584633237,-7657.01613735,0.00012998,2]
[325204528,1714584633259,-570.9396,0.00012998,2]
[325204529,1714584633278,-969.58546615,0.00012998,2]
[325204530,1714584633294,-2000.0,0.00012998,2]
[325204531,1714584633308,-200.0,0.00012998,2]
[325204532,1714584633321,-2856.49502,0.00012998,2]
[325204533,1714584633337,-2000.0,0.00012998,2]
[325204534,1714584633354,-200.0,0.00012998,2]
[325204535,1714584633373,-668.78671629,0.00012999,2]
[325204536,1714584633387,-1784.72319356,0.00012999,2]
[325204537,1714584633430,-2034.4192444,0.00012999,2]
[325204538,1714584633444,-250.1968196,0.00012999,2]
[325204539,1714584633458,-1000.0,0.00012999,2]
[325204540,1714584633470,-1000.0,0.00012999,2]
[325204541,1714584633488,-918.0,0.00013,2]
[325204542,1714584633502,-16489.00659283,0.00013,2]
[325204543,1714584633713,-2865.0,0.00013,2]
[325204544,1714584633781,-316.0,0.00013,2]
[325204554,1714584637914,-5731.89280292,0.00013,2]
[325204555,1714584637926,-17323.3127413,0.00013,2]
[325204556,1714584637937,-700.0,0.00013,2]
[325204557,1714584637949,-5680.70000001,0.00013,2]
[325204558,1714584638056,-3385.96953395,0.00013,2]
[325204559,1714584638174,-3228.89249319,0.00013,2]
[325204560,1714584638186,-7610.24471485,0.00013,2]
[325204561,1714584638197,-696.59396377,0.00013,2]
[325204562,1714584638208,-2277.80000001,0.00013,2]
[325204669,1714584640122,-724.0,0.00012956,2]
[325204670,1714584640132,-2256.27730005,0.00013,2]
[325204671,1714584640155,-394.18780526,0.00013,2]
[325204672,1714584640167,-2287.376,0.00013,2]
[325204673,1714584640179,-352.86614847,0.00013,2]
[325204675,1714584640465,-9466.94209111,0.00013,2]
[325204676,1714584640476,-810.75968419,0.00013,2]
[325204677,1714584640487,-2629.76718456,0.00013,2]
[325204728,1714584643807,-1078.79243425,0.00013,2]
[325204729,1714584643854,-8374.51501741,0.00013,2]
[325204730,1714584643910,-338.48039313,0.00013,2]
[325204731,1714584643922,-2533.15885,0.00013,2]
[325204735,1714584646067,-2039.58586464,0.00013,2]
[325204736,1714584646078,-28399.99999999,0.00013,2]
[325204737,1714584646091,-31444.05,0.00013,2]
[325204738,1714584646257,-3388.884,0.00013,2]
[325204742,1714584646681,-1000.0,0.00013,2]
[325204743,1714584755468,895.12,0.00011634,2]
[325204744,1714584784306,1480.03848149,0.00011695,2]
[325204745,1714584786542,150.0,0.00010993,2]
[325204746,1714584813066,943.82673649,0.00010993,2]
[325204747,1714584833153,943.82673649,0.00010993,2]
[325204748,1714584853075,943.82673649,0.00010993,2]
[325204749,1714584859579,200.0,0.00011578,2]
[325204750,1714584864774,527.47233212,0.00011695,2]
[325204751,1714584877108,943.82673649,0.00010993,2]
[325204752,1714584882915,4191.43432418,0.00011695,2]
[325204753,1714584883126,5262.93754759,0.00011695,2]
[325204754,1714584899082,940.00775404,0.00010993,2]
[325204755,1714584944851,6269.68,0.00011554,2]
[325204756,1714584951558,20176.31019024,0.00010993,2]
[325204757,1714584951991,407676.5846408,0.00010993,2]
[325204758,1714584958779,150.0,0.00011544,2]
[325204759,1714584963048,19687.30218531,0.00010993,2]
[325204760,1714584964840,7503.5046284,0.00010993,2]
[325204761,1714584994024,737.6,0.00011567,2]
[325204762,1714585000821,7503.5046284,0.00010993,2]
[325204763,1714585001028,19687.30218531,0.00010993,2]
[325204764,1714585003977,258024.8379848,0.00010993,2]
[325204765,1714585017045,19687.30218531,0.00010993,2]
[325204766,1714585018792,7503.5046284,0.00010993,2]
[325204767,1714585019358,289.12,0.00011679,2]
[325204768,1714585035479,19687.30218531,0.00010993,2]
[325204769,1714585038842,7503.5046284,0.00010993,2]
[325204770,1714585055034,19687.30218531,0.00010993,2]
[325204771,1714585056970,7493.88143396,0.00010993,2]
[325204772,1714585069989,231386.64378918,0.00010993,2]
[325204773,1714585078800,7503.5046284,0.00010993,2]
[325204774,1714585082195,242.35,0.00011427,2]
[325204775,1714585083036,19687.30218531,0.00010993,2]
[325204776,1714585093535,20182.90917099,0.00010993,2]
[325204777,1714585097439,200.0,0.00011511,2]
[325204778,1714585099984,199309.0900841,0.00010993,2]
[325204779,1714585100008,2051.33871516,0.00010993,2]
[325204780,1714585101068,19687.30218531,0.00010993,2]
[325204781,1714585115541,20176.14188003,0.00010993,2]
[325204782,1714585117041,9095.64748692,0.00010993,2]
[325204783,1714585122024,309545.38016932,0.00010993,2]
[325204784,1714585125084,8403.3912,0.00011598,2]
[325204785,1714585174231,372979.03149714,0.00010993,2]
[325204786,1714585187492,168.27,0.00011442,2]
[325204787,1714585244897,400.0,0.00011444,2]
[325204788,1714585332635,1429.352568,0.00011636,2]
[325204789,1714585367999,200.0,0.00011415,2]
[325204790,1714585476924,6179.06449145,0.00011598,2]
[325204791,1714585566706,23890.0,0.00011258,2]
[325204792,1714585574316,409.92,0.00011258,2]
[325204793,1714585577363,200.0,0.00011258,2]
[325204794,1714585589150,454.9,0.00011442,2]
[325204795,1714585589382,454.9,0.00011473,2]
[325204796,1714585589626,454.9,0.00011505,2]
[325204797,1714585589867,454.9,0.00011536,2]
[325204798,1714585590325,454.9,0.00011568,2]
[325204799,1714585590556,454.9,0.00011599,2]
[325204800,1714585590761,454.9,0.0001163,2]
[325204801,1714585591023,454.9,0.00011662,2]
[325204802,1714585591447,454.9,0.00011693,2]
[325204803,1714585616713,208.68,0.00011248,2]
[325204804,1714585641653,787.80501962,0.00011694,2]
[325204805,1714585649369,781.96889708,0.00011694,2]
[325204806,1714585651213,954.01337786,0.00011694,2]
[325204807,1714585662147,5550.71573575,0.00011694,2]
[325204808,1714585669350,1311.05945872,0.00011694,2]
[325204809,1714585677427,538.40022231,0.00011694,2]
[325204810,1714585684917,150.0,0.00010993,2]
[325204811,1714585714567,155.7662,0.00011595,2]
[325204814,1714585749559,4191.43432418,0.00011694,2]
[325204815,1714585749841,2217.28362404,0.00011694,2]
[325204818,1714585761483,200.0,0.0001126,2]
[325204821,1714585771198,1996.39282651,0.00011694,2]
[325204822,1714585771415,550.4144961,0.00011694,2]
[325204824,1714585801617,1037.95473275,0.00011694,2]
[325204825,1714585815652,4587.01603255,0.00011694,2]
[325204847,1714585832960,-954.01337786,0.00011695,2]
[325204848,1714585832970,-525.41235274,0.00011698,2]
[325204849,1714585832982,-85.56993715,0.00011698,2]
[325204850,1714585832994,-260.96563303,0.00011698,2]
[325204851,1714585833010,-43.30530249,0.00011723,2]
[325204852,1714585833022,-2000.0,0.00011723,2]
[325204860,1714585833356,-173.97832155,0.00011723,2]
[325204861,1714585833366,-454.9,0.00011724,2]
[325204862,1714585833375,-454.9,0.00011756,2]
[325204863,1714585833384,-454.9,0.00011787,2]
[325204864,1714585833393,-454.9,0.00011819,2]
[325204865,1714585833402,-454.9,0.0001185,2]
[325204866,1714585833412,-150.99,0.00011881,2]
[325204867,1714585833421,-454.9,0.00011881,2]
[325204868,1714585833431,-150.99,0.00011901,2]
[325204869,1714585833440,-3623.54197845,0.00011901,2]
[325204870,1714585833451,-6055.9025272,0.00011901,2]
[325204871,1714585833462,-320.54549435,0.00011901,2]
[325204872,1714585833472,-150.99,0.00011901,2]
[325204873,1714585833481,-1162.33,0.00011902,2]
[325204874,1714585833490,-888.19,0.00011902,2]
[325204875,1714585833499,-1068.07,0.00011902,2]
[325204876,1714585833508,-499.99,0.00011903,2]
[325204877,1714585833518,-150.99,0.00011903,2]
[325204878,1714585833528,-454.9,0.00011913,2]
[325204879,1714585833537,-657.97,0.00011934,2]
[325204880,1714585833546,-454.9,0.00011944,2]
[325204881,1714585833555,-175.59,0.00011955,2]
[325204882,1714585833565,-454.9,0.00011975,2]
[325204883,1714585833573,-454.9,0.00012007,2]
[325204884,1714585833583,-454.9,0.00012038,2]
[325204885,1714585833592,-210.0,0.00012092,2]
[325204886,1714585833602,-905.83,0.00012319,2]
[325204887,1714585833611,-905.83,0.00012322,2]
[325204888,1714585833620,-905.83,0.00012325,2]
[325204889,1714585833629,-905.83,0.00012329,2]
[325204890,1714585833638,-905.83,0.00012332,2]
[325204891,1714585833647,-905.83,0.00012335,2]
[325204892,1714585833656,-905.83,0.00012338,2]
[325204893,1714585833666,-693.81036074,0.00012339,2]
[325204894,1714585833674,-905.83,0.00012342,2]
[325204895,1714585833683,-905.83,0.00012345,2]
[325204896,1714585833694,-905.83,0.00012348,2]
[325204897,1714585833703,-1918.65596284,0.00012348,2]
[325204898,1714585833713,-253.13001085,0.00012348,2]
[325204899,1714585833722,-905.83,0.00012351,2]
[325204900,1714585833733,-905.83,0.00012355,2]
[325204901,1714585833742,-1000.0,0.00012357,2]
[325204902,1714585833751,-905.83,0.00012358,2]
[325204903,1714585833762,-905.83,0.00012361,2]
[325204904,1714585833773,-905.83,0.00012364,2]
[325204905,1714585833783,-905.83,0.00012367,2]
[325204906,1714585833792,-905.83,0.00012371,2]
[325204907,1714585833801,-905.83,0.00012374,2]
[325204908,1714585833811,-40.29817322,0.00012377,2]
[325204909,1714585833824,-451.46127739,0.00012377,2]
[325204910,1714585833921,-414.07054939,0.00012377,2]
[325204911,1714585833930,-91.78444561,0.0001238,2]
[325204912,1714585833942,-814.04555439,0.0001238,2]
[325204913,1714585833952,-188.75867201,0.00012416,2]
[325204914,1714585833961,-225.07080002,0.00012416,2]
[325204915,1714585833971,-577.53247142,0.00012487,2]
[325204916,1714585833980,-267.55488526,0.0001249,2]
[325204917,1714585833990,-787.17684866,0.00012498,2]
[325204918,1714585834000,-477.01926657,0.00012498,2]
[325204919,1714585834011,-826.40866291,0.00012498,2]
[325204920,1714585834020,-757.30897336,0.00012498,2]
[325204921,1714585834029,-155.69078808,0.00012498,2]
[325204922,1714585834039,-338.83243365,0.00012498,2]
[325204923,1714585834049,-345.45574367,0.00012498,2]
[325204924,1714585834067,-859.11688349,0.00012498,2]
[325204925,1714585834080,-893.4432,0.00012498,2]
[325204926,1714585834092,-829.53450096,0.00012498,2]
[325204927,1714585834106,-1263.88399606,0.00012498,2]
[325204928,1714585834116,-1996.39282651,0.00012498,2]
[325204929,1714585834126,-1037.59213109,0.00012498,2]
[325204930,1714585834136,-872.18237995,0.00012499,2]
[325204931,1714585834145,-1005024.0,0.000125,2]
[325204932,1714585834155,-461.08251501,0.00012516,2]
[325204933,1714585834166,-225.0708,0.00012607,2]
[325204934,1714585834175,-461.08251497,0.00012612,2]
[325204935,1714585834185,-150.0,0.0001265,2]
[325204936,1714585834194,-409.92,0.00012665,2]
[325204937,1714585834204,-461.08251497,0.00012708,2]
[325204938,1714585834213,-150.0,0.00012715,2]
[325204939,1714585834223,-225.0708,0.00012798,2]
[325204940,1714585834233,-34060.1076,0.00012798,2]
[325204941,1714585834243,-1000.0,0.00012798,2]
[325204942,1714585834252,-461.08251497,0.00012804,2]
[325204943,1714585834261,-390.09251745,0.00012867,2]
[325204944,1714585834271,-17945.96272657,0.00012868,2]
[325204945,1714585834280,-500.0,0.0001287,2]
[325204946,1714585834290,-400.0,0.00012875,2]
[325204947,1714585834300,-2096.1915,0.00012888,2]
[325204948,1714585834309,-183.04164829,0.00012889,2]
[325204949,1714585834326,-500.0,0.0001289,2]
[325204950,1714585834335,-53348.07919595,0.00012891,2]
[325204951,1714585834345,-169.39110178,0.00012891,2]
[325204952,1714585834354,-233.14178878,0.00012891,2]
[325204953,1714585834363,-575.84638315,0.00012891,2]
[325204954,1714585834372,-5066.45656746,0.00012891,2]
[325204955,1714585834381,-200.0,0.00012896,2]
[325204956,1714585834392,-1000.0,0.00012896,2]
[325204957,1714585834401,-200.0,0.00012896,2]
[325204958,1714585834411,-511.69586328,0.00012898,2]
[325204959,1714585834421,-155.38655138,0.00012898,2]
[325204960,1714585834430,-155.0,0.00012898,2]
[325204961,1714585834440,-194.47654533,0.00012898,2]
[325204962,1714585834449,-308.9905465,0.00012898,2]
[325204963,1714585834458,-166.27150602,0.00012898,2]
[325204964,1714585834468,-155.0,0.00012898,2]
[325204965,1714585834477,-423.21036578,0.00012898,2]
[325204966,1714585834486,-323.99205487,0.00012898,2]
[325204967,1714585834495,-155.11003247,0.00012898,2]
[325204968,1714585834505,-363.24868321,0.00012898,2]
[325204969,1714585834515,-236.51827636,0.00012898,2]
[325204970,1714585834526,-228.27980249,0.00012898,2]
[325204971,1714585834535,-212.27868082,0.00012898,2]
[325204972,1714585834544,-166.3767378,0.00012898,2]
[325204973,1714585834554,-2597.22841559,0.00012898,2]
[325204974,1714585834563,-155.19087031,0.00012898,2]
[325204975,1714585834578,-228.1314797,0.00012898,2]
[325204976,1714585834588,-155.59422064,0.00012898,2]
[325204977,1714585834597,-238.25600323,0.00012898,2]
[325204978,1714585834606,-2353.41755261,0.00012898,2]
[325204979,1714585834615,-155.0,0.00012898,2]
[325204980,1714585834624,-4406.01803981,0.00012898,2]
[325204981,1714585834634,-155.0,0.00012898,2]
[325204982,1714585834644,-407.4094868,0.00012898,2]
[325204983,1714585834653,-155.18316179,0.00012898,2]
[325204984,1714585834662,-448.24619358,0.00012898,2]
[325204985,1714585834672,-155.1119593,0.00012898,2]
[325204986,1714585834681,-280.56737188,0.00012898,2]
[325204987,1714585834691,-155.0,0.00012898,2]
[325204988,1714585834701,-156.60467947,0.00012898,2]
[325204989,1714585834711,-155.00008933,0.00012898,2]
[325204990,1714585834720,-502.49206932,0.00012898,2]
[325204991,1714585834730,-811.65666817,0.00012898,2]
[325204992,1714585834740,-245.56779934,0.00012898,2]
[325204993,1714585834750,-157.92129474,0.00012898,2]
[325204994,1714585834759,-288.50604154,0.00012898,2]
[325204995,1714585834769,-483.83874703,0.00012898,2]
[325204996,1714585834778,-168.17134915,0.00012898,2]
[325204997,1714585834787,-210.65880734,0.00012898,2]
[325204998,1714585834797,-966.55573744,0.00012898,2]
[325204999,1714585834806,-156.61524721,0.00012898,2]
[325205000,1714585834817,-225.02629278,0.00012898,2]
[325205001,1714585834827,-162.68520801,0.00012898,2]
[325205002,1714585834836,-156.44597604,0.00012898,2]
[325205003,1714585834845,-155.7977596,0.00012898,2]
[325205004,1714585834856,-236.80231061,0.00012898,2]
[325205005,1714585834865,-155.15929714,0.00012898,2]
[325205006,1714585834875,-2999.50193074,0.00012898,2]
[325205007,1714585834885,-155.0,0.00012898,2]
[325205008,1714585834895,-2357.76557745,0.00012898,2]
[325205009,1714585834904,-247.55578873,0.00012898,2]
[325205010,1714585834914,-12409.47401728,0.00012898,2]
[325205011,1714585834943,-3235.66359294,0.00012898,2]
[325205012,1714585834955,-3391.0572534,0.00012898,2]
[325205013,1714585834966,-463.31980765,0.00012898,2]
[325205014,1714585834976,-209.1400429,0.00012898,2]
[325205015,1714585834985,-487.22450388,0.00012898,2]
[325205016,1714585834997,-246.7506543,0.00012898,2]
[325205017,1714585835008,-1916.89482926,0.00012898,2]
[325205018,1714585835018,-1000.0,0.00012898,2]
[325205019,1714585835027,-155.09732717,0.00012899,2]
[325205020,1714585835037,-155.0,0.00012899,2]
[325205021,1714585835048,-195.24769107,0.00012899,2]
[325205022,1714585835058,-309.40866786,0.00012899,2]
[325205023,1714585835069,-1366.47438906,0.000129,2]
[325205024,1714585835082,-2709.45751094,0.000129,2]
[325205025,1714585835093,-2677.59819458,0.000129,2]
[325205035,1714585838388,-11432.2072065,0.000129,2]
[325205036,1714585838400,-1066.8916902,0.000129,2]
[325205037,1714585838412,-44397.74664541,0.000129,2]
[325205038,1714585838467,-23720.29666331,0.000129,2]
[325205039,1714585838477,-19490.2739,0.000129,2]
[325205040,1714585838487,-10000.0,0.000129,2]
[325205041,1714585838497,-116224.9925,0.000129,2]
[325205042,1714585838508,-167.84294178,0.000129,2]
[325205043,1714585838519,-151.0,0.000129,2]
[325205044,1714585838530,-151.0,0.000129,2]
[325205045,1714585838540,-151.0,0.000129,2]
[325205046,1714585838550,-151.0,0.000129,2]
[325205047,1714585838560,-198.365392,0.000129,2]
[325205048,1714585838571,-461.08251497,0.000129,2]
[325205049,1714585838582,-198.365392,0.000129,2]
[325205050,1714585838592,-239.63431,0.000129,2]
[325205051,1714585838876,-151.0,0.000129,2]
[325205054,1714585838909,-239.63431,0.000129,2]
[325205056,1714585838920,-162.184171,0.000129,2]
[325205058,1714585838930,-151.0,0.000129,2]
[325205060,1714585838939,-151.0,0.000129,2]
[325205062,1714585838950,-187.042012,0.000129,2]
[325205064,1714585838960,-187.042012,0.000129,2]
[325205066,1714585838969,-207.551542,0.000129,2]
[325205068,1714585838979,-207.551542,0.000129,2]
[325205070,1714585838989,-151.0,0.000129,2]
[325205072,1714585839004,-151.0,0.000129,2]
[325205074,1714585839014,-256.143499,0.000129,2]
[325205076,1714585839024,-256.143499,0.000129,2]
[325205078,1714585839033,-583.32222,0.000129,2]
[325205080,1714585839045,-151.0,0.000129,2]
[325205082,1714585839055,-583.32222,0.000129,2]
[325205085,1714585839067,-151.0,0.000129,2]
[325205087,1714585839077,-151.0,0.000129,2]
[325205088,1714585839086,-151.0,0.000129,2]
[325205090,1714585839097,-151.0,0.000129,2]
[325205093,1714585839108,-151.0,0.000129,2]
[325205094,1714585839118,-151.0,0.000129,2]
[325205097,1714585839128,-151.0,0.000129,2]
[325205099,1714585839138,-333.776636,0.000129,2]
[325205101,1714585839149,-262.787753,0.000129,2]
[325205103,1714585839159,-333.776636,0.000129,2]
[325205105,1714585839169,-151.0,0.000129,2]
[325205107,1714585839178,-151.0,0.000129,2]
[325205109,1714585839188,-151.0,0.000129,2]
[325205110,1714585839198,-151.0,0.000129,2]
[325205113,1714585839208,-151.0,0.000129,2]
[325205115,1714585839218,-151.0,0.000129,2]
[325205117,1714585839228,-151.0,0.000129,2]
[325205119,1714585839238,-230.146961,0.000129,2]
[325205121,1714585839247,-151.0,0.000129,2]
[325205123,1714585839256,-230.146961,0.000129,2]
[325205125,1714585839265,-151.0,0.000129,2]
[325205127,1714585839275,-361.757936,0.000129,2]
[325205129,1714585839284,-151.0,0.000129,2]
[325205131,1714585839293,-361.757936,0.000129,2]
[325205133,1714585839303,-151.0,0.000129,2]
[325205135,1714585839311,-247.011719,0.000129,2]
[325205137,1714585839322,-229.225791,0.000129,2]
[325205139,1714585839331,-151.0,0.000129,2]
[325205141,1714585839340,-247.011719,0.000129,2]
[325205143,1714585839349,-229.225791,0.000129,2]
[325205145,1714585839359,-581.19542968,0.00012982,2]
[325205147,1714585839368,-215.71570748,0.00012988,2]
[325205149,1714585839377,-197.57736978,0.00012988,2]
[325205151,1714585839386,-260.87529379,0.00012988,2]
[325205153,1714585839395,-1392.74465137,0.00012988,2]
[325205155,1714585839405,-155.0,0.00012988,2]
[325205157,1714585839414,-239.37624355,0.00012988,2]
[325205159,1714585839423,-162.07402568,0.00012988,2]
[325205161,1714585839432,-385.91474857,0.00012988,2]
[325205163,1714585839441,-641.63389622,0.00012988,2]
[325205165,1714585839450,-203.43366109,0.00012988,2]
[325205167,1714585839459,-160.88341354,0.00012988,2]
[325205169,1714585839469,-249.73515181,0.00012988,2]
[325205171,1714585839478,-277.42267596,0.00012988,2]
[325205172,1714585839487,-191.1509856,0.00012988,2]
[325205175,1714585839497,-340.13543524,0.00012988,2]
[325205177,1714585839506,-1675.06807267,0.00012988,2]
[325205178,1714585839517,-2118.55830212,0.00012988,2]
[325205181,1714585839527,-155.0,0.00012988,2]
[325205182,1714585839536,-207.88378701,0.00012988,2]
[325205184,1714585839545,-169.7808199,0.00012988,2]
[325205187,1714585839557,-320.01047972,0.00012988,2]
[325205188,1714585839567,-195.67959256,0.00012988,2]
[325205190,1714585839576,-401.52023369,0.00012988,2]
[325205192,1714585839585,-275.56606053,0.00012988,2]
[325205194,1714585839595,-176.59838216,0.00012988,2]
[325205196,1714585839604,-309.59058991,0.00012988,2]
[325205198,1714585839614,-155.93762568,0.00012988,2]
[325205200,1714585839623,-221.17985671,0.00012988,2]
[325205202,1714585839632,-309.67404884,0.00012988,2]
[325205204,1714585839642,-1352.14217458,0.00012988,2]
[325205206,1714585839651,-246.70457024,0.00012989,2]
[325205208,1714585839660,-215.98192042,0.00012989,2]
[325205211,1714585839670,-264.8616634,0.00012989,2]
[325205212,1714585839679,-1217.0312571,0.00012989,2]
[325205214,1714585839688,-901.6549982,0.00012989,2]
[325205217,1714585839698,-16523.45512035,0.00012989,2]
[325205219,1714585839711,-5746.78626034,0.00012989,2]
[325205221,1714585839722,-835.19869553,0.00012989,2]
[325205223,1714585839733,-17433.29519118,0.00012989,2]
[325205225,1714585839742,-185.8748178,0.00012989,2]
[325205227,1714585839752,-4595.6634856,0.00012989,2]
[325205229,1714585839761,-13464.0504192,0.00012989,2]
[325205231,1714585839770,-250.4752527,0.00012989,2]
[325205233,1714585839780,-2509.9433598,0.00012989,2]
[325205235,1714585839789,-1241.3660299,0.00012989,2]
[325205237,1714585839798,-7850.8991865,0.00012989,2]
[325205239,1714585839807,-151.0,0.0001299,2]
[325205241,1714585839816,-254.746875,0.0001299,2]
[325205243,1714585839827,-151.0,0.0001299,2]
[325205245,1714585839836,-250000.0,0.0001299,2]
[325205247,1714585839845,-151.0,0.0001299,2]
[325205249,1714585839853,-151.0,0.0001299,2]
[325205251,1714585839863,-221.387419,0.0001299,2]
[325205253,1714585839873,-84553.03936157,0.0001299,2]
[325205255,1714585839882,-151.0,0.0001299,2]
[325205257,1714585839892,-151.0,0.0001299,2]
[325205259,1714585839902,-151.509072,0.0001299,2]
[325205261,1714585839911,-151.0,0.0001299,2]
[325205263,1714585839920,-151.0,0.0001299,2]
[325205265,1714585839930,-151.0,0.0001299,2]
[325205267,1714585839940,-151.0,0.0001299,2]
[325205269,1714585839949,-151.0,0.0001299,2]
[325205271,1714585839958,-151.0,0.0001299,2]
[325205273,1714585839968,-151.0,0.0001299,2]
[325205275,1714585839978,-151.0,0.0001299,2]
[325205277,1714585839987,-194.18,0.0001299,2]
[325205279,1714585839997,-194.18,0.0001299,2]
[325205281,1714585840011,-151.030196,0.0001299,2]
[325205283,1714585840021,-255.901706,0.0001299,2]
[325205285,1714585840031,-151.030196,0.0001299,2]
[325205287,1714585840040,-151.0,0.0001299,2]